bitfinex/quotes_ETHUSD_20251107
["timestamp","ask_amount","ask_price","bid_price","bid_amount"]
[1762477803101,3.02929326,3301.1,3300.0,0.01031]
[1762477803338,0.1512,3300.2,3300.0,3.04053709]
[1762477803638,0.1512,3300.2,3300.0,0.01031]
[1762477803800,0.405504,3300.7,3300.0,0.01031]
[1762477804001,0.405504,3300.5,3300.0,0.01031]
[1762477804323,3.21331798,3300.8,3300.0,0.01031]
[1762477804324,0.481,3300.7,3300.0,0.01031]
[1762477804497,0.1837,3301.0,3300.1,0.1667]
[1762477804949,0.1837,3301.0,3300.1,3.196892]
[1762477805252,0.1837,3301.0,3300.1,0.1667]
[1762477805406,3.69316964,3302.0,3301.0,3.02932103]
[1762477805734,3.02864061,3301.9,3301.1,0.4575]
[1762477806045,0.03003289,3301.8,3300.5,0.4793]
[1762477806230,3.02904731,3301.4,3300.5,0.4793]
[1762477806431,3.0293212,3301.1,3300.5,0.4793]
[1762477806651,0.481,3301.6,3300.1,3.67620658]
[1762477806815,0.03003289,3301.5,3300.2,3.03009559]
[1762477807015,0.405504,3301.7,3300.2,1.10303854]
[1762477807235,3.02837588,3302.1,3301.2,3.02914147]
[1762477807455,3.02825027,3302.3,3301.4,3.02896039]
[1762477807604,0.481,3302.4,3301.3,0.19699109]
[1762477807802,0.1837,3302.6,3301.3,0.646]
[1762477808030,0.15822463,3303.1,3301.3,0.67629109]
[1762477808031,0.1837,3302.9,3301.3,0.67629109]
[1762477808223,0.63922463,3303.1,3301.4,0.4793]
[1762477808224,0.15822463,3303.1,3301.4,0.4793]
[1762477808457,3.18450421,3304.2,3303.0,0.1634]
[1762477808659,3.02661174,3304.1,3303.1,3.02738983]
[1762477808881,3.02661174,3304.1,3303.0,0.6427]
[1762477808882,0.15817798,3304.1,3303.0,0.6427]
[1762477809085,0.51103289,3303.9,3302.2,3.02826045]
[1762477809373,3.02714197,3303.5,3302.0,0.1634]
[1762477809679,0.481,3303.9,3302.8,3.02772435]
[1762477809827,3.21037105,3304.0,3302.8,3.50703089]
[1762477810031,0.1837,3304.0,3303.2,3.02733686]
[1762477810232,0.1837,3304.0,3303.3,3.02725538]
[1762477810535,0.1837,3304.0,3303.0,3.02754375]
[1762477810754,0.1837,3304.0,3303.3,3.02719577]
[1762477811070,0.1837,3304.0,3302.9,0.4793]
[1762477811255,3.9113704,3305.1,3303.0,0.5012755]
[1762477811457,3.02651711,3304.2,3303.0,3.49855038]
[1762477811674,3.0262625,3304.5,3303.5,3.02702174]
[1762477811865,5.4441824,3305.0,3303.6,3.02699117]
[1762477811866,3.02601154,3304.7,3303.6,3.02699117]
[1762477812030,3.9113704,3305.1,3303.6,0.30269912]
[1762477812231,3.9113704,3305.1,3303.2,3.49828814]
[1762477812232,3.7276704,3305.1,3304.7,3.02596473]
[1762477812426,3.7276704,3305.7,3304.5,0.03026176]
[1762477812653,3.7276704,3305.7,3303.9,1.895712]
[1762477812852,0.4568,3305.9,3305.0,3.0256893]
[1762477813066,0.4568,3305.9,3304.1,4.28625478]
[1762477813067,3.9113704,3306.3,3304.2,1.259712]
[1762477813272,0.15807376,3306.0,3304.3,0.2519424]
[1762477813535,3.0258799,3304.9,3303.9,3.19166181]
[1762477813733,3.02489488,3305.9,3304.0,0.1512]
[1762477813734,0.1512,3304.5,3304.0,0.1512]
[1762477813935,0.1512,3304.0,3303.4,0.165]
[1762477814127,4.16520116,3305.3,3303.7,0.1512]
[1762477814128,3.7276704,3305.3,3303.7,0.1512]
[1762477814359,0.1512,3304.3,3304.2,3.02645118]
[1762477814562,3.02570175,3305.1,3303.8,0.471]
[1762477814734,0.646,3305.4,3303.9,0.471]
[1762477814934,4.1844704,3305.9,3304.0,3.02658834]
[1762477815164,0.4568,3305.8,3304.9,3.02578597]
[1762477815385,3.88574416,3306.0,3304.1,0.34975883]
[1762477815386,3.88574416,3306.0,3304.1,0.82075883]
[1762477815598,0.15807376,3306.0,3304.2,0.471]
[1762477816158,0.15807376,3306.0,3305.2,3.02547012]
[1762477816359,0.15807376,3306.0,3304.6,3.02608485]
[1762477816695,3.02470469,3306.2,3305.2,3.0255296]
[1762477816994,0.15807727,3306.3,3305.3,3.02535851]
[1762477817294,3.02487373,3306.0,3305.2,0.165]
[1762477817494,3.02481795,3306.0,3305.2,0.165]
[1762477817662,0.21923289,3305.9,3305.2,0.165]
[1762477817858,3.02498638,3305.8,3304.5,3.02617642]
[1762477818096,0.1892,3305.9,3304.8,3.02583144]
[1762477818307,3.02508621,3305.7,3304.8,3.02583144]
[1762477818458,3.02508621,3305.7,3304.7,3.02599328]
[1762477818816,0.1892,3305.9,3304.8,0.03025901]
[1762477818962,3.7276704,3306.1,3304.8,0.471]
[1762477819165,3.88574767,3306.3,3305.6,3.02515096]
[1762477819461,0.15807727,3306.3,3305.7,0.165]
[1762477819867,3.02464247,3306.2,3305.7,0.165]
[1762477820065,3.7276704,3306.5,3305.8,0.50124986]
[1762477820376,3.7276704,3307.3,3305.8,0.50124986]
[1762477820560,3.7276704,3307.3,3305.9,0.65028393]
[1762477820762,0.4568,3307.2,3305.8,0.471]
[1762477821007,3.02390315,3307.0,3306.0,3.02473412]
[1762477821316,3.02446287,3306.4,3305.7,0.165]
[1762477821466,3.7276704,3307.1,3306.3,0.165]
[1762477821666,3.02455043,3306.3,3305.7,0.165]
[1762477822018,0.03003289,3306.2,3305.7,0.165]
[1762477822216,5.83658942,3306.5,3305.0,0.165]
[1762477822512,3.02452892,3306.3,3305.0,0.165]
[1762477822661,0.03003289,3306.2,3305.0,0.165]
[1762477822858,3.02462041,3306.2,3305.0,0.165]
[1762477823089,0.405504,3306.0,3305.0,0.165]
[1762477823339,3.0257801,3305.0,3304.3,0.636]
[1762477823688,3.02591378,3304.8,3304.3,0.165]
[1762477824106,3.02617037,3304.6,3304.1,0.165]
[1762477824331,0.03003289,3304.5,3304.1,0.165]
[1762477824637,0.1512,3304.1,3304.0,0.165]
[1762477825822,0.1892,3304.9,3304.0,0.165]
[1762477826039,0.1892,3304.9,3303.9,0.165]
[1762477826204,3.21509059,3304.9,3303.9,0.165]
[1762477826534,0.1892,3304.9,3303.9,0.165]
[1762477827193,0.1892,3304.9,3303.9,0.636]
[1762477827386,3.02602661,3304.7,3303.9,3.66271683]
[1762477827626,3.02621061,3304.5,3303.9,0.165]
[1762477827797,0.03003289,3304.4,3303.9,0.165]
[1762477828000,8.89252402,3304.8,3303.6,0.165]
[1762477828201,3.02651367,3304.2,3303.6,0.165]
[1762477828407,0.03003289,3304.7,3303.6,0.165]
[1762477828408,0.03003289,3304.3,3303.6,0.165]
[1762477828734,3.02645118,3304.2,3303.0,0.165]
[1762477828891,0.405504,3304.0,3303.9,0.001]
[1762477829086,3.43213838,3304.0,3302.6,0.165]
[1762477829292,3.0268176,3303.8,3302.6,0.165]
[1762477829491,3.02736205,3303.3,3302.6,0.165]
[1762477829709,3.0574318,3303.2,3302.6,0.165]
[1762477830032,0.4568,3303.7,3302.6,0.165]
[1762477830333,3.02615382,3304.6,3303.6,0.165]
[1762477830334,3.02608485,3304.6,3303.6,0.165]
[1762477830552,3.7276704,3304.7,3303.6,0.165]
[1762477830852,3.02607752,3304.7,3303.9,3.02672314]
[1762477831255,3.02607752,3304.7,3303.6,0.165]
[1762477831256,1.905712,3304.9,3303.6,0.165]
[1762477831556,4.28570528,3304.7,3303.2,0.165]
[1762477831722,3.02681783,3303.8,3303.2,0.165]
[1762477831922,5.83658942,3304.2,3302.8,0.471]
[1762477832245,3.02688907,3303.8,3302.8,3.02766367]
[1762477832450,0.4568,3304.1,3302.6,0.636]
[1762477832759,3.02744215,3303.2,3302.6,0.165]
[1762477832915,3.0272581,3303.4,3302.6,0.165]
[1762477833256,3.02749429,3303.1,3302.6,0.165]
[1762477833458,3.48371669,3303.7,3302.6,0.165]
[1762477833459,3.02756934,3303.0,3302.6,0.165]
[1762477833815,3.02747523,3303.1,3302.6,0.165]
[1762477834214,3.7276704,3303.9,3302.7,0.50127825]
[1762477834413,3.7276704,3303.9,3302.9,3.02759634]
[1762477834651,3.02624135,3304.5,3303.8,0.165]
[1762477834652,3.02631466,3304.4,3303.8,0.165]
[1762477834822,3.02640051,3304.3,3303.8,0.165]
[1762477835152,0.4568,3304.6,3303.8,0.165]
[1762477835454,3.02627381,3304.4,3303.8,0.165]
[1762477835750,3.02653552,3304.2,3303.8,0.165]
[1762477835948,3.02653503,3304.2,3303.8,0.165]
[1762477836155,0.4568,3304.1,3303.3,0.165]
[1762477836320,3.7276704,3304.4,3303.3,0.165]
[1762477836518,3.7276704,3304.4,3303.6,3.02693138]
[1762477836721,1.448912,3304.9,3303.6,0.60541155]
[1762477836722,3.9168704,3304.9,3303.6,0.60541155]
[1762477836941,3.02602094,3304.7,3303.7,0.471]
[1762477837153,0.4568,3305.1,3303.8,0.03026817]
[1762477837353,3.7276704,3305.2,3304.2,3.02639302]
[1762477837663,3.02586577,3304.9,3304.3,0.165]
[1762477838296,0.196,3304.9,3302.1,3.02832661]
[1762477838442,0.405504,3304.7,3303.3,0.6258]
[1762477838800,0.405504,3304.7,3303.4,0.4608]
[1762477839084,7.24293751,3304.8,3303.8,3.02674805]
[1762477839085,3.02609343,3304.6,3303.8,3.02674805]
[1762477839300,0.4893,3304.8,3303.8,3.02674805]
[1762477839500,0.4893,3304.8,3303.4,0.4608]
[1762477839678,3.02662031,3304.1,3303.4,0.4608]
[1762477839864,3.026268,3304.4,3303.4,3.48797807]
[1762477840067,3.7276704,3304.8,3303.5,3.02709247]
[1762477840266,3.02501358,3305.8,3303.5,3.02709247]
[1762477840267,3.7276704,3305.0,3303.5,0.82608925]
[1762477840507,3.7276704,3305.0,3303.7,3.02690922]
[1762477840706,5.32524343,3305.6,3303.6,0.4608]
[1762477840707,3.02525427,3305.6,3304.9,0.165]
[1762477840850,3.7276704,3305.8,3304.9,0.165]
[1762477841051,0.03003289,3305.7,3304.9,0.165]
[1762477841285,3.02536009,3305.4,3304.9,0.165]
[1762477841676,3.02536009,3305.4,3303.7,3.0268725]
[1762477841677,3.02592241,3304.8,3304.5,0.165]
[1762477841877,3.02590171,3304.8,3304.2,0.165]
[1762477842087,3.7276704,3305.7,3303.9,0.4938]
[1762477842254,3.02558725,3305.2,3304.7,0.165]
[1762477842459,3.7276704,3305.7,3304.7,0.165]
[1762477842663,0.03003289,3305.6,3304.7,0.165]
[1762477842990,3.02512184,3305.7,3304.9,3.02574014]
[1762477843288,3.02512184,3305.7,3305.0,3.02571592]
[1762477843582,3.02489055,3306.0,3305.2,3.02553272]
[1762477843783,0.1892,3306.1,3305.1,3.02559575]
[1762477843982,3.02533082,3305.5,3304.8,0.4938]
[1762477844171,3.02543746,3305.4,3304.7,0.165]
[1762477844484,0.1899,3305.6,3304.7,3.19092717]
[1762477844687,3.02570042,3305.1,3304.7,0.165]
[1762477844864,0.03003289,3305.5,3304.7,0.165]
[1762477845189,0.03003289,3305.5,3304.3,0.4938]
[1762477845190,3.02573923,3305.0,3304.3,3.52009953]
[1762477845955,0.4602,3305.5,3304.3,0.4938]
[1762477846255,0.1512,3304.7,3304.3,0.4938]
[1762477846457,0.1512,3304.7,3304.1,0.1512]
[1762477846657,0.1899,3305.6,3304.0,0.165]
[1762477846658,0.1512,3304.2,3304.0,0.165]
[1762477846872,0.1512,3304.2,3304.1,3.02654278]
[1762477847075,0.1512,3304.2,3304.0,3.68540047]
[1762477847275,0.1512,3304.2,3304.0,0.6588]
[1762477847478,0.1512,3304.2,3304.0,0.165]
[1762477847958,3.02533433,3305.5,3304.4,3.02619426]
[1762477848180,3.02533433,3305.5,3304.1,0.4938]
[1762477848181,0.1512,3304.6,3304.5,3.05643297]
[1762477848556,0.1512,3304.6,3304.5,3.51997121]
[1762477848758,0.1512,3304.6,3304.5,0.981]
[1762477848977,0.1512,3304.6,3304.5,0.4872]
[1762477849179,0.1512,3304.6,3304.5,4.00717642]
[1762477849388,0.1512,3305.1,3304.6,3.02608485]
[1762477849592,0.1512,3305.1,3304.9,3.02577311]
[1762477849895,3.02505211,3305.8,3305.0,0.4872]
[1762477850094,3.7276704,3306.4,3305.4,3.02535245]
[1762477850264,3.7276704,3306.4,3305.8,0.4872]
[1762477850462,0.1512,3306.0,3305.8,3.51215229]
[1762477850796,0.1899,3305.9,3305.3,0.165]
[1762477850981,0.1899,3305.9,3305.0,0.165]
[1762477850982,3.02523431,3305.6,3305.0,0.165]
[1762477851190,0.1789,3305.8,3305.0,0.165]
[1762477851191,0.1512,3305.4,3305.0,0.165]
[1762477851691,1.9935,3305.1,3305.0,0.165]
[1762477852271,2.4537,3305.1,3304.0,0.165]
[1762477852572,0.1899,3304.9,3304.0,0.165]
[1762477853092,0.1899,3304.9,3303.2,0.4938]
[1762477853093,3.02632668,3304.4,3303.2,0.4938]
[1762477853393,0.6501,3304.9,3303.5,3.02707871]
[1762477853394,3.02655051,3304.1,3303.5,3.02707871]
[1762477853596,8.90496453,3305.1,3304.8,0.165]
[1762477853597,1.9935,3305.1,3304.8,0.165]
[1762477853763,1.9935,3305.1,3304.8,3.19087992]
[1762477853967,1.9935,3305.1,3305.0,3.0257186]
[1762477854386,1.9935,3305.1,3304.8,0.165]
[1762477855094,5.01914405,3305.1,3304.4,3.19121001]
[1762477855271,1.9935,3305.1,3304.4,0.165]
[1762477855473,1.9935,3305.1,3304.1,0.165]
[1762477855872,3.02623424,3304.5,3304.1,0.165]
[1762477856186,3.02609886,3304.6,3303.9,3.02672429]
[1762477856393,3.02609886,3304.6,3304.1,0.165]
[1762477856896,3.0261774,3304.5,3304.1,0.165]
[1762477857301,0.1899,3304.8,3304.1,0.165]
[1762477857475,0.03003289,3304.7,3304.1,0.165]
[1762477857663,0.1899,3304.8,3304.1,0.165]
[1762477857869,3.02616915,3304.6,3304.1,0.165]
[1762477859589,0.1899,3304.8,3304.1,0.165]
[1762477859781,3.0260558,3304.7,3304.1,0.165]
[1762477859977,3.02599328,3304.7,3304.1,0.165]
[1762477860179,0.4602,3305.0,3304.1,0.165]
[1762477860180,1.9935,3305.1,3304.6,0.4872]
[1762477860380,1.9935,3305.1,3304.4,3.02618542]
[1762477860690,2.4537,3305.1,3304.1,0.165]
[1762477860891,1.9935,3305.1,3305.0,0.4872]
[1762477861076,3.7276704,3306.5,3304.4,5.83865257]
[1762477861277,0.002,3307.2,3305.2,3.02553551]
[1762477861580,0.002,3307.2,3307.1,3.02379728]
[1762477862401,0.002,3307.2,3307.1,3.18389728]
[1762477862705,0.002,3307.2,3307.1,0.1504]
[1762477862889,0.002,3307.2,3306.6,0.1601]
[1762477863203,0.002,3307.2,3307.1,3.02379728]
[1762477863498,0.002,3307.2,3307.1,3.62857324]
[1762477863704,0.002,3307.2,3307.1,0.76487596]
[1762477863875,0.002,3307.2,3306.4,0.1601]
[1762477864075,0.002,3307.2,3307.1,3.02379728]
[1762477864481,0.002,3307.2,3306.5,0.1601]
[1762477864676,0.002,3307.2,3306.2,3.02461914]
[1762477864877,0.002,3307.2,3306.3,3.32691838]
[1762477865098,0.002,3307.2,3305.8,0.1601]
[1762477865304,3.02570812,3307.2,3306.3,3.02450304]
[1762477865505,3.02386355,3307.1,3305.8,0.1601]
[1762477865689,3.02381461,3307.1,3305.8,0.1601]
[1762477865892,3.02381461,3307.1,3306.3,3.02444142]
[1762477866200,0.002,3307.2,3305.9,3.02489488]
[1762477866402,0.002,3307.2,3306.0,0.31849949]
[1762477866603,3.4840265,3307.1,3305.3,5.83865257]
[1762477866782,0.4602,3307.1,3306.4,3.02442398]
[1762477867175,0.002,3307.2,3306.1,0.1601]
[1762477867475,0.002,3307.2,3306.5,3.02427014]
[1762477867676,0.002,3307.2,3306.6,3.02425398]
[1762477867870,0.002,3307.2,3306.5,3.02433191]
[1762477868107,3.02572721,3307.2,3306.1,0.1601]
[1762477868318,0.002,3307.2,3306.6,3.02424968]
[1762477868506,0.002,3307.2,3306.6,3.02422985]
[1762477868706,0.1899,3306.7,3305.6,0.1601]
[1762477868879,0.1899,3306.7,3305.2,3.18558554]
[1762477869084,3.02440811,3306.5,3305.3,0.31855855]
[1762477869280,0.03003289,3306.4,3304.5,0.58386526]
[1762477869494,3.02441578,3306.5,3305.7,3.02503356]
[1762477869722,3.02446034,3306.4,3305.7,3.02503356]
[1762477870021,3.02468237,3306.2,3305.4,3.02526486]
[1762477870221,3.02477509,3306.1,3304.7,0.1601]
[1762477870425,3.02506636,3305.8,3305.1,3.02556564]
[1762477870631,3.02483923,3306.0,3305.2,3.02547541]
[1762477870836,3.21110957,3305.9,3305.2,3.02547541]
[1762477871122,3.21112856,3305.9,3304.7,0.1601]
[1762477871319,0.1862,3305.9,3305.3,3.02536224]
[1762477871543,3.02431358,3306.6,3305.7,3.02500901]
[1762477871839,0.6895,3306.7,3305.3,0.30253622]
[1762477872118,0.4996,3306.6,3305.0,0.1601]
[1762477872305,3.52393111,3306.6,3305.2,3.02553551]
[1762477872505,3.21408469,3306.7,3306.0,3.02473417]
[1762477872703,3.70960791,3307.1,3306.3,3.02452484]
[1762477872905,0.1512,3306.4,3306.2,3.02453362]
[1762477873218,0.1512,3306.4,3306.3,3.02452892]
[1762477873434,0.6858,3307.1,3306.6,3.02422993]
[1762477873585,0.1512,3306.7,3306.6,3.0241913]
[1762477873784,0.1512,3306.7,3305.7,3.02500526]
[1762477873980,3.02427825,3306.6,3305.8,0.30250053]
[1762477874181,3.02443999,3306.4,3305.1,4.28529505]
[1762477874381,3.02424514,3306.7,3304.9,0.1601]
[1762477874382,0.4996,3306.7,3304.9,0.1601]
[1762477874617,0.1512,3305.5,3305.0,0.1512]
[1762477875012,0.1512,3305.5,3305.2,3.02552985]
[1762477875183,0.1512,3305.5,3305.0,0.1512]
[1762477875516,0.1512,3305.5,3305.2,3.02546439]
[1762477876079,0.1512,3305.5,3305.0,0.1512]
[1762477876297,0.1512,3305.5,3305.2,3.02550935]
[1762477876493,0.1512,3305.5,3305.1,3.02562706]
[1762477876727,0.1512,3305.5,3305.2,3.02551011]
[1762477876931,0.1512,3305.5,3305.0,0.1512]
[1762477877136,0.1512,3305.5,3305.2,3.02546986]
[1762477877441,0.1512,3305.5,3305.0,3.17691807]
[1762477877721,0.1512,3305.0,3304.4,3.02619922]
[1762477877880,0.4996,3305.4,3304.3,0.1512]
[1762477877881,3.02556482,3305.2,3304.3,0.1512]
[1762477878223,0.1512,3304.8,3304.3,0.48546512]
[1762477878426,0.1512,3304.6,3304.1,3.19152348]
[1762477878594,0.1512,3304.6,3304.1,0.165]
[1762477879317,0.1512,3304.6,3304.2,3.02644013]
[1762477879481,0.1512,3304.6,3304.1,3.19150962]
[1762477879688,0.4996,3304.5,3303.9,0.001]
[1762477879908,3.17747385,3304.4,3303.9,0.001]
[1762477880309,0.1512,3304.4,3303.9,0.001]
[1762477880518,3.02663438,3304.0,3303.9,0.001]
[1762477880814,3.02653207,3304.2,3303.9,0.001]
[1762477880815,0.4996,3304.3,3303.9,0.001]
[1762477881214,3.52597093,3304.3,3303.9,0.001]
[1762477881393,0.4996,3304.3,3303.9,0.001]
[1762477881592,3.02663438,3304.0,3303.9,0.001]
[1762477881920,3.02654995,3304.1,3303.9,0.001]
[1762477882218,3.52605579,3304.2,3303.9,0.001]
[1762477882417,3.52608372,3304.2,3303.9,0.001]
[1762477882613,3.02648372,3304.2,3303.9,0.001]
[1762477882813,0.4996,3304.1,3303.9,0.001]
[1762477883018,3.02645118,3304.2,3303.9,0.001]
[1762477883188,3.02663438,3304.0,3303.9,0.001]
[1762477883811,3.52623438,3304.0,3303.9,0.001]
[1762477884517,3.55626727,3304.0,3303.9,0.001]
[1762477885106,3.99979803,3304.0,3303.9,0.001]
[1762477886216,0.4996,3304.5,3303.9,0.001]
[1762477886419,0.1512,3304.1,3304.0,3.02654598]
[1762477886624,0.1512,3304.1,3304.0,3.64800413]
[1762477886788,0.1512,3304.1,3304.0,3.80830413]
[1762477886989,0.002,3305.1,3304.5,3.02616955]
[1762477887185,0.1512,3304.6,3304.4,3.02623935]
[1762477887385,0.1512,3304.6,3304.5,3.02617642]
[1762477887623,0.1512,3304.6,3304.0,0.77265815]
[1762477887798,0.1512,3304.6,3304.0,0.1512]
[1762477888127,0.1512,3304.6,3304.5,3.02617642]
[1762477888337,0.1512,3304.6,3304.0,3.17778985]
[1762477888338,0.1512,3304.6,3304.0,0.3115]
[1762477888501,0.1512,3304.6,3304.0,0.1512]
[1762477888706,0.1512,3304.6,3304.5,3.02617642]
[1762477888885,0.1512,3304.6,3304.0,0.1512]
[1762477889092,0.1512,3304.6,3304.0,0.46909517]
[1762477889309,0.1512,3304.6,3304.0,0.1512]
[1762477889541,0.1512,3304.6,3304.0,3.17774541]
[1762477889826,0.1512,3304.6,3303.9,0.001]
[1762477889827,3.02645118,3304.2,3303.9,0.001]
[1762477889993,3.17783438,3304.0,3303.9,0.001]
[1762477890556,3.67743438,3304.0,3303.9,0.001]
[1762477890687,3.70746727,3304.0,3303.9,0.001]
[1762477890891,4.08293838,3304.0,3303.9,0.001]
[1762477891121,3.67743438,3304.0,3303.9,0.001]
[1762477891310,3.02657192,3304.1,3303.9,0.001]
[1762477891497,0.405504,3304.5,3303.9,0.001]
[1762477891700,3.02663438,3304.0,3303.9,0.001]
[1762477892116,3.02635959,3304.3,3303.9,0.001]
[1762477892425,3.02656809,3304.1,3303.9,0.001]
[1762477892622,3.02663438,3304.0,3303.9,0.001]
[1762477892829,3.02656337,3304.1,3303.9,0.001]
[1762477892992,0.4996,3304.9,3303.9,0.001]
[1762477893323,0.1512,3304.2,3304.1,3.02654278]
[1762477893534,0.1512,3304.5,3304.2,0.60531256]
[1762477893730,0.1512,3304.5,3304.3,3.02630605]
[1762477893908,0.1512,3304.5,3304.0,0.1512]
[1762477894106,0.1512,3304.5,3304.4,3.026268]
[1762477894306,0.1512,3304.5,3304.4,3.05653068]
[1762477894553,0.1512,3304.8,3304.2,0.1512]
[1762477894753,0.1512,3304.4,3304.3,3.02635959]
[1762477895073,0.002,3305.1,3304.9,3.0258035]
[1762477895392,0.002,3305.1,3304.4,3.02621287]
[1762477895683,0.002,3305.1,3305.0,3.0257186]
[1762477896439,0.5016,3305.1,3303.9,0.001]
[1762477896689,0.5016,3305.1,3304.1,3.02652187]
[1762477896853,3.02578827,3305.0,3304.1,3.02654278]
[1762477897042,3.02625098,3304.5,3303.9,0.001]
[1762477897461,3.02627424,3304.4,3303.9,0.001]
[1762477897794,0.4996,3305.0,3303.9,0.001]
[1762477897985,3.02589216,3304.9,3303.9,0.001]
[1762477898199,3.02628021,3304.4,3303.9,0.001]
[1762477898613,3.026509,3304.2,3303.9,0.001]
[1762477898912,3.02663438,3304.0,3303.9,0.001]
[1762477899406,3.02622327,3304.5,3303.9,0.001]
[1762477899407,0.405504,3304.6,3303.9,0.001]
[1762477899599,3.02663438,3304.0,3303.9,0.001]
[1762477899808,3.05666727,3304.0,3303.9,0.001]
[1762477899996,3.52516727,3304.0,3303.9,0.001]
[1762477900371,3.93067127,3304.0,3303.9,0.00014696]
[1762477900705,5.63391403,3304.0,3303.9,0.00014696]
[1762477900868,3.43250484,3303.6,3303.5,0.001]
[1762477901068,4.91274973,3303.6,3303.5,0.001]
[1762477901271,3.02792436,3302.6,3301.7,0.1613]
[1762477901569,3.05743032,3303.2,3301.8,3.02863426]
[1762477901788,3.02801221,3302.5,3301.8,3.02863426]
[1762477902106,3.02801221,3302.5,3301.7,0.1613]
[1762477902107,3.0281466,3302.4,3301.7,3.19002023]
[1762477902290,0.03003289,3302.6,3301.7,0.1613]
[1762477902604,0.1905,3302.7,3301.7,0.1613]
[1762477902805,3.02823073,3302.3,3301.7,0.1613]
[1762477903010,3.02830181,3302.2,3301.3,3.02907711]
[1762477903220,3.02846214,3302.1,3301.4,0.1613]
[1762477903369,3.5252093,3302.5,3301.4,0.1613]
[1762477903574,3.02810077,3302.4,3301.4,0.1613]
[1762477903822,0.4972,3302.5,3301.4,0.1613]
[1762477903981,0.4972,3302.5,3301.4,3.19023499]
[1762477904430,0.4972,3302.5,3301.4,0.1613]
[1762477904730,3.02845839,3302.1,3301.6,0.001]
[1762477905085,0.4972,3302.5,3301.6,0.001]
[1762477905399,3.02834774,3302.2,3301.6,0.001]
[1762477905570,3.02850551,3302.0,3301.6,0.001]
[1762477905802,0.4972,3302.2,3301.6,0.001]
[1762477906002,3.02840962,3302.1,3301.6,0.001]
[1762477906203,2.162416,3302.6,3301.6,0.001]
[1762477906635,3.02841414,3302.1,3301.6,0.001]
[1762477907437,3.02829687,3302.2,3301.6,0.001]
[1762477907643,3.02837777,3302.1,3301.6,0.001]
[1762477908535,3.0286263,3301.9,3301.6,0.001]
[1762477908735,3.67324276,3301.7,3301.6,0.001]
[1762477908937,4.07874676,3301.7,3301.6,0.001]
[1762477909122,4.57594676,3301.7,3301.6,0.001]
[1762477909638,3.02943361,3301.0,3300.2,3.03005212]
[1762477909936,3.02888004,3301.6,3300.1,3.19147711]
[1762477909937,0.1512,3300.6,3300.1,3.19147711]
[1762477910138,0.1512,3300.6,3300.1,0.1613]
[1762477910340,3.02993576,3300.4,3300.0,0.01031]
[1762477910514,0.4972,3300.5,3300.0,0.01031]
[1762477910515,3.0302112,3300.1,3300.0,0.01031]
[1762477910713,3.03015203,3300.2,3300.0,0.01031]
[1762477911118,3.0302112,3300.1,3300.0,0.01031]
[1762477911525,3.9814112,3300.1,3300.0,0.01031]
[1762477913563,3.9814112,3300.1,3298.0,3.03209035]
[1762477913564,1.34627242,3300.1,3298.3,0.1726]
[1762477913749,0.4972,3300.0,3298.4,0.1726]
[1762477913951,0.4972,3300.0,3299.0,3.03113827]
[1762477914128,3.22090667,3299.9,3298.4,0.1726]
[1762477914468,0.1905,3299.9,3298.4,0.1726]
[1762477914758,3.03056728,3299.8,3299.0,3.03121241]
[1762477914967,3.03057853,3299.7,3298.9,3.03128571]
[1762477915263,3.03076421,3299.5,3298.7,3.0314938]
[1762477915431,0.1905,3299.9,3298.3,3.20445595]
[1762477915632,3.03078256,3299.5,3298.4,3.03177298]
[1762477915859,0.4972,3299.6,3298.3,0.1726]
[1762477916067,0.4972,3299.5,3298.6,3.0315859]
[1762477916368,0.1905,3300.4,3298.7,3.03149725]
[1762477916661,0.1905,3301.1,3298.8,1.432312]
[1762477916835,0.1905,3301.1,3300.0,3.030284]
[1762477916836,3.02950212,3300.9,3300.0,3.030284]
[1762477917037,3.2198246,3301.1,3299.0,3.03122158]
[1762477917038,0.1905,3301.1,3299.0,3.03122158]
[1762477917239,0.52723289,3301.0,3299.1,0.49298216]
[1762477917563,0.405504,3300.2,3298.1,3.2045804]
[1762477917742,3.03094798,3299.3,3298.2,3.03195347]
[1762477917942,3.03094798,3299.3,3298.5,3.03165101]
[1762477918340,0.4972,3299.6,3298.3,3.20443947]
[1762477918546,3.03120866,3299.1,3298.3,0.51030395]
[1762477918736,3.03105629,3299.2,3298.4,3.03177298]
[1762477918935,3.03095288,3299.3,3298.3,0.1726]
[1762477919136,3.03087507,3299.4,3298.6,3.03152101]
[1762477919368,3.03087507,3299.4,3298.7,3.0314972]
[1762477919569,0.4972,3299.5,3298.3,0.1726]
[1762477920069,3.03119536,3299.1,3298.3,0.1726]
[1762477920384,0.4972,3299.5,3298.6,3.03158915]
[1762477920385,0.1512,3298.7,3298.6,3.03158915]
[1762477920750,0.405504,3300.2,3299.0,3.03118588]
[1762477921083,0.405504,3300.2,3298.6,0.03031589]
[1762477921084,0.1512,3299.7,3299.4,3.03083375]
[1762477921287,5.32524343,3301.5,3299.5,0.03030762]
[1762477921491,0.1512,3299.9,3299.3,0.1512]
[1762477922147,0.4972,3299.9,3298.3,0.1726]
[1762477922351,0.1512,3299.3,3298.4,0.20291772]
[1762477922587,0.4972,3300.9,3299.6,3.0306703]
[1762477922771,0.1512,3299.9,3299.4,3.03084565]
[1762477922971,0.4972,3300.9,3299.3,0.1512]
[1762477923173,0.1512,3299.7,3299.5,3.0307526]
[1762477923374,0.1512,3299.7,3299.6,3.03067038]
[1762477923574,3.26878273,3302.3,3299.6,3.03067038]
[1762477923575,0.4972,3301.4,3299.6,0.0303067]
[1762477923774,0.1925,3301.7,3299.3,0.31822248]
[1762477923775,0.002,3301.7,3301.2,3.02916555]
[1762477923958,0.002,3301.7,3300.9,3.0294106]
[1762477924163,0.002,3301.7,3301.0,3.02938456]
[1762477924361,3.0292958,3301.1,3299.7,0.1726]